[Event "*** Titled Tuesday Blitz"]
[Site "Chess.com"]
[Date "2021.03.30"]
[Round "11"]
[White "andy_rekt"]
[Black "geordie_derraugh"]
[Result "0-1"]
[WhiteElo "2289"]
[BlackElo "2444"]
[TimeControl "180+1"]
[EndTime "12:09:22 PDT"]
[Termination "geordie_derraugh won on time"]

1. d4 {[%clk 0:03:00.9]} 1... Nf6 {[%clk 0:02:58]} 2. c4 {[%clk 0:03:01.4]} 2...
e6 {[%clk 0:02:57.5]} 3. Nc3 {[%clk 0:03:01.4]} 3... Bb4 {[%clk 0:02:57.5]} 4.
e3 {[%clk 0:03:02]} 4... O-O {[%clk 0:02:57.5]} 5. Ne2 {[%clk 0:02:55.1]} 5...
Re8 {[%clk 0:02:57.4]} 6. a3 {[%clk 0:02:55.6]} 6... Bf8 {[%clk 0:02:57.5]} 7.
d5 {[%clk 0:02:56]} 7... a5 {[%clk 0:02:55.3]} 8. g3 {[%clk 0:02:56.1]} 8... Na6
{[%clk 0:02:53]} 9. Bg2 {[%clk 0:02:56.7]} 9... Nc5 {[%clk 0:02:47.9]} 10. b3
{[%clk 0:02:42.8]} 10... d6 {[%clk 0:02:44.1]} 11. O-O {[%clk 0:02:42.1]} 11...
a4 {[%clk 0:02:32.5]} 12. b4 {[%clk 0:02:36.7]} 12... Nb3 {[%clk 0:02:32.5]} 13.
Rb1 {[%clk 0:02:36.7]} 13... exd5 {[%clk 0:02:20.4]} 14. cxd5 {[%clk 0:02:32.3]}
14... Bf5 {[%clk 0:02:17.4]} 15. Rb2 {[%clk 0:02:29.6]} 15... Qd7 {[%clk
0:02:10.6]} 16. Nd4 {[%clk 0:02:20.2]} 16... Bg4 {[%clk 0:02:01.3]} 17. f3
{[%clk 0:02:17.1]} 17... Nxc1 {[%clk 0:01:59.3]} 18. fxg4 {[%clk 0:02:12.8]}
18... Nb3 {[%clk 0:01:45.1]} 19. Nxb3 {[%clk 0:02:12.5]} 19... axb3 {[%clk
0:01:45]} 20. g5 {[%clk 0:02:09.9]} 20... Rxe3 {[%clk 0:01:44.4]} 21. gxf6
{[%clk 0:02:02.2]} 21... Rxc3 {[%clk 0:01:43.5]} 22. fxg7 {[%clk 0:02:02]} 22...
Bxg7 {[%clk 0:01:42.5]} 23. Rxb3 {[%clk 0:02:02.4]} 23... Rxa3 {[%clk
0:01:41.2]} 24. Rxa3 {[%clk 0:01:58]} 24... Rxa3 {[%clk 0:01:41.1]} 25. Qh5
{[%clk 0:01:57.6]} 25... Ra1 {[%clk 0:01:27.4]} 26. Be4 {[%clk 0:01:54]} 26...
Rxf1+ {[%clk 0:01:22.8]} 27. Kxf1 {[%clk 0:01:54.9]} 27... Qb5+ {[%clk
0:01:18.3]} 28. Kg2 {[%clk 0:01:55.1]} 28... Qxb4 {[%clk 0:01:02.5]} 29. Bxh7+
{[%clk 0:01:48]} 29... Kf8 {[%clk 0:01:01.6]} 30. Qg5 {[%clk 0:01:32.5]} 30...
Qb2+ {[%clk 0:00:58.4]} 31. Kh3 {[%clk 0:01:31.7]} 31... Qf6 {[%clk 0:00:47.5]}
32. Qxf6 {[%clk 0:01:16.2]} 32... Bxf6 {[%clk 0:00:48.4]} 33. Bf5 {[%clk
0:01:13.3]} 33... c5 {[%clk 0:00:46.8]} 34. Bd3 {[%clk 0:01:09.1]} 34... Bd4
{[%clk 0:00:42.5]} 35. Kg4 {[%clk 0:01:05.2]} 35... Kg7 {[%clk 0:00:35.8]} 36.
Kf5 {[%clk 0:01:04.3]} 36... Be5 {[%clk 0:00:32.6]} 37. Bb5 {[%clk 0:00:59.4]}
37... Kf8 {[%clk 0:00:30.7]} 38. Kg4 {[%clk 0:00:47.4]} 38... Ke7 {[%clk
0:00:30.4]} 39. h4 {[%clk 0:00:46.9]} 39... Kf6 {[%clk 0:00:30.7]} 40. Kf3
{[%clk 0:00:44.6]} 40... Bb2 {[%clk 0:00:28.3]} 41. Ke4 {[%clk 0:00:40.1]} 41...
Bc3 {[%clk 0:00:18.6]} 42. g4 {[%clk 0:00:39.9]} 42... Be1 {[%clk 0:00:18.7]}
43. h5 {[%clk 0:00:39]} 43... Kg5 {[%clk 0:00:17.8]} 44. Be2 {[%clk 0:00:38.3]}
44... b5 {[%clk 0:00:16.1]} 45. Bxb5 {[%clk 0:00:37.7]} 45... Kxg4 {[%clk
0:00:16.6]} 46. h6 {[%clk 0:00:17]} 46... f5+ {[%clk 0:00:14.7]} 47. Ke3 {[%clk
0:00:14.7]} 47... Bc3 {[%clk 0:00:12.8]} 48. Bd7 {[%clk 0:00:09.7]} 48... Kg5
{[%clk 0:00:11.9]} 49. h7 {[%clk 0:00:09.5]} 49... Be5 {[%clk 0:00:11.9]} 50.
Be8 {[%clk 0:00:06.4]} 50... Kh6 {[%clk 0:00:09.1]} 51. Bd7 {[%clk 0:00:06.2]}
51... f4+ {[%clk 0:00:08.9]} 52. Ke4 {[%clk 0:00:05.7]} 52... Kxh7 {[%clk
0:00:09.3]} 53. Bf5+ {[%clk 0:00:05.7]} 53... Kg7 {[%clk 0:00:09.4]} 54. Kf3
{[%clk 0:00:05.6]} 54... Kf6 {[%clk 0:00:09.8]} 55. Bd3 {[%clk 0:00:05.4]} 55...
Kg5 {[%clk 0:00:09.3]} 56. Bc4 {[%clk 0:00:05.5]} 56... Bd4 {[%clk 0:00:09.4]}
57. Bd3 {[%clk 0:00:05.6]} 57... Be3 {[%clk 0:00:09.6]} 58. Bc4 {[%clk
0:00:03.2]} 58... Kf5 {[%clk 0:00:10.1]} 0-1

[Event "*** Titled Tuesday Blitz"]
[Site "Chess.com"]
[Date "2021.03.30"]
[Round "11"]
[White "MaxLeto"]
[Black "HrvojeZagreb"]
[Result "0-1"]
[WhiteElo "2336"]
[BlackElo "2248"]
[TimeControl "180+1"]
[EndTime "12:09:22 PDT"]
[Termination "HrvojeZagreb won by resignation"]

1. g4 {[%clk 0:03:00.9]} 1... h5 {[%clk 0:02:57.5]} 2. gxh5 {[%clk 0:02:58.4]}
2... Nf6 {[%clk 0:02:56.7]} 3. Bg2 {[%clk 0:02:56.4]} 3... Nxh5 {[%clk
0:02:55.7]} 4. d4 {[%clk 0:02:56.3]} 4... d5 {[%clk 0:02:52.7]} 5. c4 {[%clk
0:02:55.5]} 5... e6 {[%clk 0:02:41.5]} 6. Nc3 {[%clk 0:02:55.2]} 6... c6 {[%clk
0:02:37.9]} 7. e4 {[%clk 0:02:39.5]} 7... dxc4 {[%clk 0:02:34.8]} 8. Be3 {[%clk
0:02:38.8]} 8... Bd6 {[%clk 0:02:30.3]} 9. Nge2 {[%clk 0:02:37.4]} 9... b5
{[%clk 0:02:27.8]} 10. e5 {[%clk 0:02:32.1]} 10... Bb4 {[%clk 0:02:24.6]} 11.
Qc2 {[%clk 0:02:28]} 11... Bb7 {[%clk 0:02:16.6]} 12. O-O-O {[%clk 0:02:16.8]}
12... Qe7 {[%clk 0:01:49.1]} 13. Rhg1 {[%clk 0:02:08.3]} 13... Na6 {[%clk
0:01:40.9]} 14. Bf3 {[%clk 0:01:43.4]} 14... g6 {[%clk 0:01:38.6]} 15. Ne4
{[%clk 0:01:38.5]} 15... Qd7 {[%clk 0:01:22.8]} 16. Bxh5 {[%clk 0:01:37]} 16...
Be7 {[%clk 0:01:13.1]} 17. Bf3 {[%clk 0:01:29.3]} 17... Nb4 {[%clk 0:01:11.2]}
18. Qb1 {[%clk 0:01:12.4]} 18... Rxh2 {[%clk 0:01:07.5]} 19. Nf4 {[%clk
0:01:04.6]} 19... Nd5 {[%clk 0:00:59.4]} 20. Bd2 {[%clk 0:00:29.9]} 20... b4
{[%clk 0:00:37]} 21. Qc2 {[%clk 0:00:26.6]} 21... c3 {[%clk 0:00:31]} 22. bxc3
{[%clk 0:00:27.5]} 22... bxc3 {[%clk 0:00:30.1]} 23. Nxc3 {[%clk 0:00:26.9]}
23... Rxf2 {[%clk 0:00:28.1]} 24. Rgf1 {[%clk 0:00:17.9]} 24... Ba3+ {[%clk
0:00:16.5]} 25. Kb1 {[%clk 0:00:17.5]} 25... Rxf1 {[%clk 0:00:14.2]} 26. Rxf1
{[%clk 0:00:17.3]} 26... Ba6 {[%clk 0:00:13.5]} 27. Ncxd5 {[%clk 0:00:06.3]}
27... cxd5 {[%clk 0:00:09.6]} 28. Be2 {[%clk 0:00:03.8]} 28... Rb8+ {[%clk
0:00:08.5]} 29. Ka1 {[%clk 0:00:04.2]} 29... Bxe2 {[%clk 0:00:07.3]} 30. Nxe2
{[%clk 0:00:04]} 30... Bb2+ {[%clk 0:00:07.3]} 31. Qxb2 {[%clk 0:00:02.6]} 31...
Rxb2 {[%clk 0:00:08.2]} 32. Kxb2 {[%clk 0:00:03.5]} 32... Qb5+ {[%clk
0:00:08.5]} 33. Kc2 {[%clk 0:00:03.6]} 33... Qxe2 {[%clk 0:00:08.9]} 34. Rb1
{[%clk 0:00:03.3]} 34... Qc4+ {[%clk 0:00:08]} 35. Bc3 {[%clk 0:00:02.9]} 35...
Qxa2+ {[%clk 0:00:07.5]} 36. Rb2 {[%clk 0:00:02.9]} 36... Qa4+ {[%clk
0:00:07.7]} 37. Kd2 {[%clk 0:00:03.4]} 37... Kf8 {[%clk 0:00:05.5]} 38. Bb4+
{[%clk 0:00:03.6]} 38... Kg7 {[%clk 0:00:04.8]} 39. Be7 {[%clk 0:00:03.6]} 39...
Qxd4+ {[%clk 0:00:04.7]} 40. Kc2 {[%clk 0:00:04.1]} 40... Qxe5 {[%clk
0:00:04.6]} 41. Rb3 {[%clk 0:00:04.6]} 41... Qe2+ {[%clk 0:00:04.1]} 42. Kc3
{[%clk 0:00:04.7]} 42... Qf3+ {[%clk 0:00:03.2]} 43. Kb2 {[%clk 0:00:05.3]}
43... Qe2+ {[%clk 0:00:03.1]} 44. Ka3 {[%clk 0:00:05.6]} 44... d4 {[%clk
0:00:02.9]} 45. Kb4 {[%clk 0:00:05.2]} 45... Qa6 {[%clk 0:00:03.2]} 46. Bc5
{[%clk 0:00:04.8]} 46... Qb7+ {[%clk 0:00:02.9]} 47. Kc4 {[%clk 0:00:05.1]}
47... Qd5+ {[%clk 0:00:03.7]} 48. Kb4 {[%clk 0:00:05]} 48... a5+ {[%clk
0:00:03.7]} 49. Ka4 {[%clk 0:00:01.5]} 49... Qxc5 {[%clk 0:00:03.7]} 50. Rb5
{[%clk 0:00:01.9]} 50... Qb4+ {[%clk 0:00:03.5]} 51. Rxb4 {[%clk 0:00:01.8]}
51... axb4 {[%clk 0:00:04.4]} 52. Kb3 {[%clk 0:00:02.7]} 52... e5 {[%clk
0:00:05.3]} 53. Kc4 {[%clk 0:00:03.1]} 53... f5 {[%clk 0:00:06.2]} 54. Kd3
{[%clk 0:00:04]} 54... Kf6 {[%clk 0:00:07.1]} 0-1

[Event "*** Titled Tuesday Blitz"]
[Site "Chess.com"]
[Date "2021.03.30"]
[Round "11"]
[White "Mr_Sinigami"]
[Black "chessdjw"]
[Result "1-0"]
[WhiteElo "2589"]
[BlackElo "2760"]
[TimeControl "180+1"]
[EndTime "12:09:27 PDT"]
[Termination "Mr_Sinigami won by checkmate"]

1. d4 {[%clk 0:03:00.9]} 1... Nf6 {[%clk 0:03:00.1]} 2. Nf3 {[%clk 0:02:56.4]}
2... g6 {[%clk 0:03:00.5]} 3. Bf4 {[%clk 0:02:53.7]} 3... Bg7 {[%clk 0:02:59.6]}
4. e3 {[%clk 0:02:49.3]} 4... O-O {[%clk 0:02:58.5]} 5. h3 {[%clk 0:02:45.4]}
5... d6 {[%clk 0:02:46.7]} 6. Be2 {[%clk 0:02:40.4]} 6... c5 {[%clk 0:02:42.8]}
7. O-O {[%clk 0:02:32.9]} 7... Qb6 {[%clk 0:02:38.1]} 8. Nbd2 {[%clk 0:02:17.5]}
8... Be6 {[%clk 0:02:34.9]} 9. c4 {[%clk 0:02:08.6]} 9... cxd4 {[%clk
0:02:20.4]} 10. exd4 {[%clk 0:02:04.6]} 10... Bf5 {[%clk 0:02:10.6]} 11. b3
{[%clk 0:01:58.2]} 11... Nc6 {[%clk 0:02:07.4]} 12. d5 {[%clk 0:01:40]} 12...
Nb4 {[%clk 0:02:06.6]} 13. Be3 {[%clk 0:01:33]} 13... Qc7 {[%clk 0:01:39.7]} 14.
Nd4 {[%clk 0:01:28.4]} 14... Bd7 {[%clk 0:01:39]} 15. a3 {[%clk 0:01:22.6]}
15... Na6 {[%clk 0:01:38.9]} 16. b4 {[%clk 0:01:19.1]} 16... e5 {[%clk
0:01:37.9]} 17. dxe6 {[%clk 0:01:06.5]} 17... fxe6 {[%clk 0:01:38.8]} 18. Rc1
{[%clk 0:01:06.3]} 18... e5 {[%clk 0:01:38]} 19. Nb5 {[%clk 0:01:00.9]} 19...
Qb8 {[%clk 0:01:37.2]} 20. Nf3 {[%clk 0:00:53.2]} 20... Bxb5 {[%clk 0:00:55.2]}
21. cxb5 {[%clk 0:00:50.4]} 21... Nc7 {[%clk 0:00:55.8]} 22. Qxd6 {[%clk
0:00:47]} 22... Ncd5 {[%clk 0:00:56.2]} 23. Qxb8 {[%clk 0:00:40.5]} 23... Rfxb8
{[%clk 0:00:55.6]} 24. Bc4 {[%clk 0:00:36.7]} 24... Kh8 {[%clk 0:00:49.3]} 25.
Nxe5 {[%clk 0:00:33.9]} 25... Nxe3 {[%clk 0:00:48.7]} 26. fxe3 {[%clk
0:00:31.3]} 26... Bh6 {[%clk 0:00:44.6]} 27. Nf7+ {[%clk 0:00:28]} 27... Kg7
{[%clk 0:00:44.9]} 28. Nxh6 {[%clk 0:00:24.5]} 28... Re8 {[%clk 0:00:43.9]} 29.
Ng4 {[%clk 0:00:17.5]} 29... Nxg4 {[%clk 0:00:43.9]} 30. Rf7+ {[%clk 0:00:17.3]}
30... Kh6 {[%clk 0:00:44.1]} 31. hxg4 {[%clk 0:00:17.5]} 31... Rxe3 {[%clk
0:00:44.7]} 32. Rxb7 {[%clk 0:00:17.2]} 32... Rc8 {[%clk 0:00:44.3]} 33. Rc2
{[%clk 0:00:17.3]} 33... Rxa3 {[%clk 0:00:40.8]} 34. Kh2 {[%clk 0:00:15.2]}
34... Kg5 {[%clk 0:00:37.2]} 35. Bd3 {[%clk 0:00:15]} 35... Rd8 {[%clk
0:00:30.7]} 36. Be2 {[%clk 0:00:15]} 36... Rd4 {[%clk 0:00:27.6]} 37. Rxh7
{[%clk 0:00:12.9]} 37... Rxb4 {[%clk 0:00:27.8]} 38. Rc5+ {[%clk 0:00:12.8]}
38... Kf4 {[%clk 0:00:28]} 39. Rf7+ {[%clk 0:00:12.5]} 39... Ke4 {[%clk
0:00:27.7]} 40. Re7+ {[%clk 0:00:12.1]} 40... Kd4 {[%clk 0:00:27.3]} 41. Rg5
{[%clk 0:00:11.9]} 41... Rb2 {[%clk 0:00:24.3]} 42. Rxg6 {[%clk 0:00:11.6]}
42... Raa2 {[%clk 0:00:23.1]} 43. Rge6 {[%clk 0:00:11.6]} 43... Ra1 {[%clk
0:00:20.5]} 44. g5 {[%clk 0:00:11.6]} 44... Rbb1 {[%clk 0:00:20]} 45. g6 {[%clk
0:00:11.5]} 45... Rh1+ {[%clk 0:00:20.6]} 46. Kg3 {[%clk 0:00:11.5]} 46... Ra3+
{[%clk 0:00:21.5]} 47. Bf3 {[%clk 0:00:11.5]} 47... Rh5 {[%clk 0:00:19.5]} 48.
Re4+ {[%clk 0:00:09.6]} 48... Kc5 {[%clk 0:00:17.9]} 49. Rg4 {[%clk 0:00:09.8]}
49... Rh8 {[%clk 0:00:17.6]} 50. g7 {[%clk 0:00:09.9]} 50... Rg8 {[%clk
0:00:18.3]} 51. Rf7 {[%clk 0:00:10.1]} 51... Rd8 {[%clk 0:00:12.5]} 52. Rf8
{[%clk 0:00:09.9]} 52... Rd6 {[%clk 0:00:13.1]} 53. g8=Q {[%clk 0:00:09.8]}
53... Kb6 {[%clk 0:00:13.4]} 54. Rb8+ {[%clk 0:00:08.9]} 54... Ka5 {[%clk
0:00:13.6]} 55. b6 {[%clk 0:00:08.7]} 55... a6 {[%clk 0:00:11.2]} 56. Qc4 {[%clk
0:00:08]} 56... Rxf3+ {[%clk 0:00:09.1]} 57. gxf3 {[%clk 0:00:08]} 57... Rg6
{[%clk 0:00:08.5]} 58. Qa4# {[%clk 0:00:07.5]} 1-0

[Event "*** Titled Tuesday Blitz"]
[Site "Chess.com"]
[Date "2021.03.30"]
[Round "11"]
[White "Spriteball"]
[Black "ApoIogiA"]
[Result "1-0"]
[WhiteElo "2343"]
[BlackElo "2183"]
[TimeControl "180+1"]
[EndTime "12:09:29 PDT"]
[Termination "Spriteball won by resignation"]

1. d4 {[%clk 0:03:00.9]} 1... Nf6 {[%clk 0:02:59.6]} 2. c4 {[%clk 0:03:01.1]}
2... g6 {[%clk 0:02:59.7]} 3. Nc3 {[%clk 0:03:01.1]} 3... d5 {[%clk 0:02:59.8]}
4. cxd5 {[%clk 0:03:01.3]} 4... Nxd5 {[%clk 0:03:00.7]} 5. e4 {[%clk 0:03:01.7]}
5... Nxc3 {[%clk 0:03:00.6]} 6. bxc3 {[%clk 0:03:02.6]} 6... Bg7 {[%clk
0:03:01.3]} 7. Nf3 {[%clk 0:03:03]} 7... c5 {[%clk 0:03:01.6]} 8. Be2 {[%clk
0:03:02.6]} 8... O-O {[%clk 0:02:59.5]} 9. O-O {[%clk 0:03:02.5]} 9... Nc6
{[%clk 0:02:59.6]} 10. Be3 {[%clk 0:03:02.7]} 10... Qc7 {[%clk 0:02:56.7]} 11.
Rc1 {[%clk 0:02:57.3]} 11... b6 {[%clk 0:02:53.4]} 12. d5 {[%clk 0:02:57.2]}
12... Na5 {[%clk 0:02:52.8]} 13. Qd2 {[%clk 0:02:52.8]} 13... e5 {[%clk
0:02:45.3]} 14. Bh6 {[%clk 0:02:48.7]} 14... Nb7 {[%clk 0:02:42.8]} 15. Bxg7
{[%clk 0:02:46.7]} 15... Kxg7 {[%clk 0:02:42.8]} 16. Rfd1 {[%clk 0:02:31.2]}
16... Rd8 {[%clk 0:01:37.4]} 17. h4 {[%clk 0:02:17.6]} 17... Qe7 {[%clk
0:01:32.9]} 18. Qe3 {[%clk 0:02:13.8]} 18... Nd6 {[%clk 0:01:31.4]} 19. g3
{[%clk 0:02:09]} 19... Bg4 {[%clk 0:01:30]} 20. Nd2 {[%clk 0:02:08.8]} 20... Bd7
{[%clk 0:01:26.9]} 21. Nc4 {[%clk 0:02:05.3]} 21... Ba4 {[%clk 0:01:14.8]} 22.
Nxd6 {[%clk 0:02:04.4]} 22... Bxd1 {[%clk 0:00:56.8]} 23. Nxf7 {[%clk
0:01:57.4]} 23... Rf8 {[%clk 0:00:24.5]} 24. Ng5 {[%clk 0:01:39.8]} 24... Bxe2
{[%clk 0:00:21.9]} 25. Ne6+ {[%clk 0:01:37.9]} 25... Kg8 {[%clk 0:00:21.3]} 26.
Nxf8 {[%clk 0:01:17.3]} 26... Bg4 {[%clk 0:00:18.5]} 27. f3 {[%clk 0:01:00]}
27... Bc8 {[%clk 0:00:12]} 28. Ne6 {[%clk 0:00:49.7]} 28... Bxe6 {[%clk
0:00:12.2]} 29. dxe6 {[%clk 0:00:50.6]} 29... Qxe6 {[%clk 0:00:13.1]} 30. c4
{[%clk 0:00:47]} 30... Rd8 {[%clk 0:00:12.5]} 31. h5 {[%clk 0:00:37.3]} 31...
Rd4 {[%clk 0:00:11.6]} 32. hxg6 {[%clk 0:00:34.9]} 32... hxg6 {[%clk 0:00:12.5]}
33. Qg5 {[%clk 0:00:32]} 33... Kg7 {[%clk 0:00:12.5]} 34. Kg2 {[%clk 0:00:28.2]}
34... Qd6 {[%clk 0:00:12.8]} 35. Rc2 {[%clk 0:00:23.9]} 35... Rd1 {[%clk
0:00:12.2]} 36. f4 {[%clk 0:00:19.9]} 36... Rd2+ {[%clk 0:00:07.5]} 37. Rxd2
{[%clk 0:00:18.8]} 37... Qxd2+ {[%clk 0:00:08]} 38. Kh3 {[%clk 0:00:18.9]} 38...
Qd7+ {[%clk 0:00:08]} 39. f5 {[%clk 0:00:18.6]} 39... Qf7 {[%clk 0:00:03.2]} 40.
Qxg6+ {[%clk 0:00:18.4]} 40... Qxg6 {[%clk 0:00:03.5]} 41. fxg6 {[%clk
0:00:19.3]} 41... Kxg6 {[%clk 0:00:04.2]} 42. Kg4 {[%clk 0:00:18.3]} 42... a6
{[%clk 0:00:04.2]} 43. a4 {[%clk 0:00:18.3]} 43... Kf6 {[%clk 0:00:02.2]} 44.
Kh5 {[%clk 0:00:18.5]} 44... b5 {[%clk 0:00:02.6]} 45. axb5 {[%clk 0:00:18.5]}
45... axb5 {[%clk 0:00:02.9]} 46. cxb5 {[%clk 0:00:18.9]} 46... Ke6 {[%clk
0:00:03.2]} 47. Kg4 {[%clk 0:00:15.3]} 47... c4 {[%clk 0:00:02]} 48. Kf3 {[%clk
0:00:15.7]} 48... Kd6 {[%clk 0:00:02.5]} 49. g4 {[%clk 0:00:13.3]} 49... Kc5
{[%clk 0:00:02.8]} 50. g5 {[%clk 0:00:12.9]} 50... Kxb5 {[%clk 0:00:02.9]} 51.
g6 {[%clk 0:00:12.8]} 51... c3 {[%clk 0:00:03.8]} 52. Ke2 {[%clk 0:00:12.7]}
52... Kb4 {[%clk 0:00:04]} 53. g7 {[%clk 0:00:12.5]} 53... Kb3 {[%clk
0:00:04.3]} 54. g8=Q+ {[%clk 0:00:11.4]} 54... Kb2 {[%clk 0:00:05.2]} 55. Qb8+
{[%clk 0:00:10.2]} 55... Kc1 {[%clk 0:00:05.5]} 56. Qxe5 {[%clk 0:00:10.1]}
56... c2 {[%clk 0:00:05.6]} 57. Qc3 {[%clk 0:00:10.3]} 57... Kb1 {[%clk
0:00:05.6]} 58. Qxc2+ {[%clk 0:00:10.7]} 58... Kxc2 {[%clk 0:00:05.8]} 59. e5
{[%clk 0:00:11.6]} 59... Kc3 {[%clk 0:00:06.7]} 60. e6 {[%clk 0:00:12.5]} 60...
Kc4 {[%clk 0:00:07.6]} 61. e7 {[%clk 0:00:13.4]} 61... Kc5 {[%clk 0:00:08.5]}
62. e8=Q {[%clk 0:00:13.6]} 62... Kd6 {[%clk 0:00:09.4]} 63. Kd3 {[%clk
0:00:13.8]} 63... Kd5 {[%clk 0:00:10.3]} 64. Qh5+ {[%clk 0:00:13.9]} 1-0

[Event "*** Titled Tuesday Blitz"]
[Site "Chess.com"]
[Date "2021.03.30"]
[Round "11"]
[White "Baron_von_Koenig"]
[Black "pavelalexandru07"]
[Result "1-0"]
[WhiteElo "2530"]
[BlackElo "2300"]
[TimeControl "180+1"]
[EndTime "12:09:30 PDT"]
[Termination "Baron_von_Koenig won by resignation"]

1. b3 {[%clk 0:02:29.3]} 1... d5 {[%clk 0:02:54.8]} 2. e3 {[%clk 0:02:28.9]}
2... c5 {[%clk 0:02:53.1]} 3. Bb2 {[%clk 0:02:26.6]} 3... a6 {[%clk 0:02:53]} 4.
f4 {[%clk 0:02:25.7]} 4... Nc6 {[%clk 0:02:49.8]} 5. Nf3 {[%clk 0:02:24.8]} 5...
f6 {[%clk 0:02:47.4]} 6. g3 {[%clk 0:02:04.5]} 6... e6 {[%clk 0:02:34.4]} 7. Bg2
{[%clk 0:02:02.5]} 7... Bd6 {[%clk 0:02:32.3]} 8. O-O {[%clk 0:02:02.2]} 8...
Nge7 {[%clk 0:02:31.6]} 9. d3 {[%clk 0:02:02.3]} 9... O-O {[%clk 0:02:30]} 10.
e4 {[%clk 0:02:02.4]} 10... Bc7 {[%clk 0:02:23.5]} 11. Nbd2 {[%clk 0:02:01.5]}
11... d4 {[%clk 0:02:14.1]} 12. a4 {[%clk 0:01:58.1]} 12... Rb8 {[%clk
0:01:48.7]} 13. Ba3 {[%clk 0:01:56.8]} 13... Bb6 {[%clk 0:01:34.2]} 14. Qe2
{[%clk 0:01:39.3]} 14... Ba7 {[%clk 0:01:29.6]} 15. g4 {[%clk 0:01:31.3]} 15...
b5 {[%clk 0:01:28.8]} 16. axb5 {[%clk 0:01:30.6]} 16... axb5 {[%clk 0:01:28.8]}
17. f5 {[%clk 0:01:28.9]} 17... Qc7 {[%clk 0:01:15.1]} 18. Kh1 {[%clk
0:01:28.3]} 18... Re8 {[%clk 0:01:03.2]} 19. Qf2 {[%clk 0:01:27.6]} 19... Qf4
{[%clk 0:00:59.7]} 20. Bc1 {[%clk 0:01:24.4]} 20... Qxg4 {[%clk 0:00:58.5]} 21.
Rg1 {[%clk 0:01:24.2]} 21... Qh5 {[%clk 0:00:58.1]} 22. fxe6 {[%clk 0:01:16.5]}
22... Bxe6 {[%clk 0:00:50.7]} 23. Nf1 {[%clk 0:01:14.5]} 23... Bb6 {[%clk
0:00:44.5]} 24. Ng3 {[%clk 0:01:13.2]} 24... Qf7 {[%clk 0:00:44.2]} 25. Nh4
{[%clk 0:01:12.8]} 25... Ne5 {[%clk 0:00:38.6]} 26. Ngf5 {[%clk 0:01:01.8]}
26... Bxf5 {[%clk 0:00:29.9]} 27. Nxf5 {[%clk 0:01:01.3]} 27... Nxf5 {[%clk
0:00:22.9]} 28. Qxf5 {[%clk 0:01:02.2]} 28... g6 {[%clk 0:00:20.1]} 29. Bh3
{[%clk 0:00:55.5]} 29... Kh8 {[%clk 0:00:19.4]} 30. Qf2 {[%clk 0:00:52.4]} 30...
c4 {[%clk 0:00:18.5]} 31. bxc4 {[%clk 0:00:32.7]} 31... bxc4 {[%clk 0:00:17.3]}
32. Ra3 {[%clk 0:00:32.3]} 32... Bc5 {[%clk 0:00:13.4]} 33. Ra5 {[%clk
0:00:30.3]} 33... Bb4 {[%clk 0:00:12.8]} 34. Ra6 {[%clk 0:00:30.5]} 34... cxd3
{[%clk 0:00:11.4]} 35. Rxf6 {[%clk 0:00:30.2]} 35... Qb7 {[%clk 0:00:09.6]} 36.
Bg2 {[%clk 0:00:22.9]} 36... Ng4 {[%clk 0:00:06.5]} 37. Qxd4 {[%clk 0:00:21.9]}
37... Nxf6 {[%clk 0:00:05.8]} 38. Qxf6+ {[%clk 0:00:21.8]} 38... Qg7 {[%clk
0:00:06.5]} 39. Qxg7+ {[%clk 0:00:20.2]} 39... Kxg7 {[%clk 0:00:07.4]} 40. cxd3
{[%clk 0:00:21]} 40... Rbd8 {[%clk 0:00:06.5]} 41. Bb2+ {[%clk 0:00:20.3]} 41...
Kg8 {[%clk 0:00:06.8]} 42. d4 {[%clk 0:00:20.6]} 42... Bd2 {[%clk 0:00:04.4]}
43. Rd1 {[%clk 0:00:18.5]} 43... Be3 {[%clk 0:00:04.7]} 44. d5 {[%clk
0:00:17.2]} 44... Bf4 {[%clk 0:00:05.1]} 45. Kg1 {[%clk 0:00:16.1]} 45... Be5
{[%clk 0:00:05.4]} 46. Bxe5 {[%clk 0:00:14.1]} 46... Rxe5 {[%clk 0:00:05.6]} 47.
Kf2 {[%clk 0:00:14.1]} 47... Kg7 {[%clk 0:00:05.4]} 48. Ke3 {[%clk 0:00:14.1]}
48... Kf6 {[%clk 0:00:05.8]} 49. Bf3 {[%clk 0:00:14.2]} 49... Ke7 {[%clk
0:00:05.9]} 50. Kd4 {[%clk 0:00:14.2]} 50... Kd6 {[%clk 0:00:06.3]} 51. Ra1
{[%clk 0:00:14.1]} 51... Rg5 {[%clk 0:00:05.3]} 52. Ra6+ {[%clk 0:00:14]} 52...
Ke7 {[%clk 0:00:05.4]} 53. Ra7+ {[%clk 0:00:14.1]} 53... Kf8 {[%clk 0:00:04.5]}
54. Rxh7 {[%clk 0:00:14.7]} 54... Rg1 {[%clk 0:00:03.4]} 55. e5 {[%clk
0:00:13.7]} 55... Re1 {[%clk 0:00:02.2]} 56. e6 {[%clk 0:00:13.2]} 56... Rf1
{[%clk 0:00:02.3]} 57. e7+ {[%clk 0:00:12.1]} 57... Ke8 {[%clk 0:00:03.1]} 58.
exd8=Q+ {[%clk 0:00:12]} 58... Kxd8 {[%clk 0:00:04]} 59. Be4 {[%clk 0:00:12.5]}
59... Rd1+ {[%clk 0:00:04.3]} 1-0